bitfinex-derivatives/quotes_BTCF0:USTF0_20210108
["timestamp","ask_amount","ask_price","bid_price","bid_amount"]
[1610080903612,1.66780152,38622.0,38621.0,0.02454912]
[1610080903814,1.66780152,38622.0,38621.0,0.05655563]
[1610080904213,1.66780152,38622.0,38621.0,0.02454912]
[1610080904412,1.66780152,38622.0,38621.0,0.02484441]
[1610080906616,0.73358622,38622.0,38621.0,0.02484441]
[1610080906815,0.73358622,38622.0,38621.0,0.05655567]
[1610080907017,0.73358622,38622.0,38621.0,0.02296425]
[1610080907316,0.73358622,38622.0,38621.0,0.05496964]
[1610080907516,0.27199608,38622.0,38621.0,0.02296425]
[1610080907918,0.27199608,38622.0,38621.0,0.05496825]
[1610080908117,0.27199608,38622.0,38621.0,0.02296425]
[1610080908317,0.27199608,38622.0,38621.0,0.054968]
[1610080912121,0.5566106,38622.0,38621.0,0.054968]
[1610080912522,0.57215419,38622.0,38609.0,0.06341763]
[1610080912722,0.57215419,38622.0,38608.0,4.00482608]
[1610080912924,0.57215419,38622.0,38621.0,0.5]
[1610080913125,1.01842758,38622.0,38621.0,0.5]
[1610080913324,1.01842758,38622.0,38621.0,0.53200876]
[1610080913824,0.57216619,38622.0,38621.0,0.53200876]
[1610080914424,0.57216619,38622.0,38621.0,0.03200876]
[1610080914425,0.5566106,38622.0,38621.0,0.03200876]
[1610080914824,1.03450595,38622.0,38621.0,0.5]
[1610080915223,4.92360595,38622.0,38621.0,0.53200977]
[1610080915424,4.90804585,38622.0,38621.0,0.53200977]
[1610080915825,5.84304865,38622.0,38621.0,0.53200977]
[1610080916225,6.52045695,38622.0,38621.0,0.37348905]
[1610080916426,7.0911385,38622.0,38621.0,0.37348905]
[1610080916825,7.86079516,38622.0,38621.0,0.3417746]
[1610080918025,7.86079516,38622.0,38621.0,0.34018912]
[1610080918826,7.86079516,38622.0,38621.0,0.37191344]
[1610080921129,8.72551802,38622.0,38621.0,0.37191344]
[1610080921430,7.86079516,38622.0,38621.0,0.37191344]
[1610080922130,3.97169516,38622.0,38621.0,0.37191344]
[1610080922733,3.40101361,38622.0,38621.0,0.2926437]
[1610080929442,2.63135695,38622.0,38621.0,0.2926437]
[1610080929841,3.41302058,38622.0,38621.0,0.29105854]
[1610080930242,2.25092339,38622.0,38621.0,0.29105854]
[1610080930441,2.63135639,38622.0,38621.0,0.29105854]
[1610080930843,3.41347128,38622.0,38621.0,0.29105854]
[1610080932045,7.70237128,38622.0,38621.0,0.29105854]
[1610080932446,8.57924213,38622.0,38621.0,0.29105854]
[1610080932946,9.14991363,38622.0,38621.0,0.29105854]
[1610080935550,9.14991363,38622.0,38621.0,0.21178987]
[1610080935749,11.62641766,38622.0,38621.0,0.05324745]
[1610080935947,11.62641766,38622.0,38589.0,0.06344455]
[1610080936148,1.5,38621.0,38589.0,0.06344455]
[1610080936551,0.01582654,38590.0,38589.0,0.09546493]
[1610080936748,0.10186654,38590.0,38565.0,3.6314]
[1610080936948,0.10186654,38590.0,38589.0,0.03202295]
[1610080936949,1.11990202,38590.0,38589.0,0.03202295]
[1610080937148,1.11990202,38590.0,38566.0,0.19066134]
[1610080937351,0.48539745,38585.0,38566.0,0.19066134]
[1610080937549,3.7899,38580.0,38552.0,3.8719]
[1610080937750,3.91276,38580.0,38569.0,0.13632608]
[1610080937951,3.91276,38580.0,38553.0,0.19066987]
[1610080938352,3.91276,38580.0,38570.0,0.03202735]
[1610080938553,3.91276,38580.0,38553.0,0.15864535]
[1610080938554,0.48476283,38579.0,38554.0,0.03202856]
[1610080938752,0.48476283,38579.0,38571.0,0.03203108]
[1610080939155,3.9817,38572.0,38555.0,0.03203228]
[1610080939355,4.53436172,38572.0,38546.0,0.11092]
[1610080939552,4.53436172,38572.0,38531.0,0.15869032]
[1610080939553,4.53436172,38572.0,38556.0,0.03203415]
[1610080939756,0.13632608,38557.0,38556.0,0.03203415]
[1610080939953,0.13632608,38557.0,38551.0,0.13632608]
[1610080940156,0.13632608,38557.0,38556.0,0.03204022]
[1610080940353,3.23862608,38557.0,38552.0,0.0320407]
[1610080940553,3.23862608,38557.0,38556.0,0.03204018]
[1610080940954,3.23862608,38557.0,38552.0,0.03204086]
[1610080941156,3.23862608,38557.0,38556.0,0.03204067]
[1610080941357,3.23862608,38557.0,38553.0,0.03204087]
[1610080941758,3.23862608,38557.0,38552.0,0.03204082]
[1610080941957,3.23862608,38557.0,38554.0,0.03204093]
[1610080942157,3.23862608,38557.0,38553.0,0.03204099]
[1610080942558,0.13632608,38557.0,38536.0,0.09819]
[1610080942759,3.796,38555.0,38554.0,0.03204137]
[1610080942957,3.796,38555.0,38537.0,0.0320419]
[1610080943257,3.796,38555.0,38554.0,0.03204276]
[1610080943459,3.796,38555.0,38538.0,0.03204544]
[1610080943860,0.13632608,38539.0,38536.0,0.13632608]
[1610080944059,3.8267,38537.0,38536.0,0.13632608]
[1610080944460,3.8267,38537.0,38528.0,0.10545]
[1610080944661,3.8267,38537.0,38536.0,0.0320494]
[1610080944861,3.8267,38537.0,38529.0,0.03205088]
[1610080945060,3.8267,38537.0,38511.0,3.3117]
[1610080945061,3.8267,38537.0,38536.0,0.03205211]
[1610080945462,3.8267,38537.0,38530.0,0.03205298]
[1610080945661,3.8267,38537.0,38536.0,0.03205502]
[1610080945861,3.8267,38537.0,38531.0,0.03205433]
[1610080946161,3.8267,38537.0,38536.0,0.03205535]
[1610080946363,3.8267,38537.0,38532.0,0.03205535]
[1610080946763,3.8267,38537.0,38536.0,0.03205544]
[1610080946963,3.8267,38537.0,38533.0,0.03205599]
[1610080947165,3.8267,38537.0,38536.0,0.03205599]
[1610080947466,3.8267,38537.0,38534.0,0.03205589]
[1610080947666,3.8267,38537.0,38536.0,0.03205614]
[1610080948065,3.8267,38537.0,38525.0,0.03205608]
[1610080948265,3.8267,38537.0,38536.0,0.03205653]
[1610080948466,3.8267,38537.0,38526.0,0.03205683]
[1610080948666,0.26008608,38539.0,38526.0,0.03205683]
[1610080948866,0.26008608,38539.0,38536.0,0.03205727]
[1610080949065,0.13632608,38539.0,38525.0,0.06351545]
[1610080949268,0.13632608,38539.0,38537.0,0.03205531]
[1610080949466,0.13565,38549.0,38537.0,0.03205531]
[1610080949667,3.0207,38552.0,38537.0,0.03205531]
[1610080949866,0.13632608,38546.0,38545.0,0.13632608]
[1610080950467,0.13632608,38546.0,38545.0,0.16837576]
[1610080951069,0.55822608,38546.0,38545.0,0.03204968]
[1610080951469,0.55822608,38546.0,38537.0,0.03205531]
[1610080951470,0.55822608,38546.0,38538.0,0.03204783]
[1610080951669,0.55822608,38546.0,38545.0,0.03204895]
[1610080951872,0.55822608,38546.0,38539.0,0.03205011]
[1610080952171,0.55822608,38546.0,38538.0,0.03205026]
[1610080952371,0.13632608,38546.0,38538.0,0.03205026]
[1610080952571,0.13632608,38546.0,38540.0,0.03205218]
[1610080952770,0.13632608,38546.0,38539.0,0.03205571]
[1610080952971,0.13632608,38546.0,38537.0,0.03205531]
[1610080952972,4.3107,38540.0,38537.0,0.03205531]
[1610080953571,4.3107,38540.0,38538.0,0.03205805]
[1610080953771,0.13632608,38539.0,38538.0,0.03205805]
[1610080954374,4.00822608,38539.0,38538.0,0.03205805]
[1610080956372,0.13632608,38539.0,38538.0,0.03205805]
[1610080957875,0.13632608,38539.0,38538.0,0.16838413]
[1610080958081,0.10942,38550.0,38538.0,0.16838413]
[1610080958082,0.10942,38550.0,38547.0,3.7281]
[1610080958275,0.01543481,38559.0,38546.0,0.12764]
[1610080958476,0.0154565,38565.0,38549.0,3.964]
[1610080958877,0.01551682,38581.0,38549.0,3.964]
[1610080959076,0.01551682,38581.0,38550.0,0.09550206]
[1610080959276,0.01551682,38581.0,38580.0,4.1683]
[1610080959479,0.47902999,38608.0,38580.0,4.1683]
[1610080959678,0.47902999,38608.0,38580.0,0.12934]
[1610080959877,1.0,38618.0,38580.0,0.12934]
[1610080959878,0.46605805,38627.0,38607.0,0.13632608]
[1610080960077,0.46605805,38627.0,38607.0,0.25561608]
[1610080960278,0.68347933,38632.0,38621.0,0.5]
[1610080960279,0.0157107,38631.0,38621.0,0.5]
[1610080960478,0.0157107,38631.0,38621.0,0.62351]
[1610080960680,0.77791298,38641.0,38627.0,4.3182]
[1610080960681,0.01570824,38641.0,38627.0,4.3182]
[1610080961079,0.7777913,38651.0,38628.0,0.00029851]
[1610080961080,0.01570708,38645.0,38628.0,0.00029851]
[1610080961482,0.01569727,38649.0,38628.0,0.00029851]
[1610080961882,0.01569714,38651.0,38648.0,0.13632608]
[1610080962483,0.48177802,38654.0,38649.0,0.00029847]
[1610080962882,0.01568652,38654.0,38649.0,0.00029847]
[1610080963282,3.7791,38653.0,38622.0,0.00029844]
[1610080963482,3.89383,38653.0,38622.0,0.00029844]
[1610080963884,0.13632608,38634.0,38633.0,0.13632608]
[1610080964284,0.10582,38641.0,38633.0,0.13662452]
[1610080964883,0.10582,38641.0,38634.0,0.00029844]
[1610080965885,0.13632608,38635.0,38632.0,0.13632608]
[1610080966085,0.10582,38641.0,38632.0,0.13632608]
[1610080966490,0.10582,38641.0,38633.0,0.00029844]
[1610080967888,0.24214608,38641.0,38640.0,0.13632608]
[1610080968089,0.24214608,38641.0,38633.0,0.50029844]
[1610080968288,0.24214608,38641.0,38640.0,0.00029854]
[1610080968488,0.24214608,38641.0,38634.0,0.50029854]
[1610080968888,3.01794608,38644.0,38634.0,0.50029854]
[1610080969090,3.01794608,38644.0,38635.0,0.00029854]
[1610080969490,0.01563338,38652.0,38635.0,0.00029854]
[1610080969689,0.11473,38653.0,38635.0,0.00029854]
[1610080969890,0.47996111,38654.0,38652.0,0.13632608]
[1610080970090,0.15195219,38656.0,38652.0,0.13632608]
[1610080970491,0.13632608,38656.0,38634.0,0.5]
[1610080970692,0.25763608,38656.0,38634.0,0.5]
[1610080970891,0.25763608,38656.0,38635.0,0.00029851]
[1610080971892,0.12131,38656.0,38651.0,0.13632608]
[1610080972497,0.23093613,38641.0,38637.0,4.3295]
[1610080972894,0.23093613,38641.0,38638.0,0.0002985]
[1610080973595,0.23093613,38641.0,38634.0,0.5]
[1610080973796,0.07556613,38644.0,38640.0,0.5]
[1610080973995,0.07556613,38644.0,38643.0,0.13632608]
[1610080975199,0.07556613,38644.0,38643.0,0.63632608]
[1610080975599,0.07556613,38644.0,38643.0,0.5]
[1610080975999,0.21189221,38644.0,38643.0,0.5]
[1610080978206,0.21189221,38644.0,38643.0,0.50029852]
[1610080978606,0.07556613,38644.0,38643.0,0.50029852]
[1610080978807,0.12131,38656.0,38643.0,0.50029852]
[1610080979207,0.01555301,38667.0,38643.0,0.50029852]
[1610080979406,0.01555301,38667.0,38644.0,0.00029849]
[1610080979608,0.01554523,38670.0,38644.0,0.00029849]
[1610080979808,3.8934,38670.0,38644.0,0.00029849]
[1610080980008,0.13632608,38645.0,38644.0,0.00029849]
[1610080980410,0.23777608,38645.0,38644.0,0.00029849]
[1610080981809,0.10145,38645.0,38644.0,0.00029849]
[1610080982010,0.10145,38645.0,38644.0,0.50029849]
[1610080983211,0.10145,38645.0,38644.0,0.3882228]
[1610080983816,0.10145,38645.0,38644.0,0.4199055]
[1610080984014,0.23777608,38645.0,38644.0,0.4199055]
[1610080984414,2.95657608,38666.0,38644.0,0.4199055]
[1610080984814,2.95657608,38666.0,38645.0,0.53198272]
[1610080985318,2.95657608,38666.0,38646.0,0.03198323]
[1610080985916,2.95657608,38666.0,38647.0,0.63632608]
[1610080986516,2.95657608,38666.0,38648.0,0.03198193]
[1610080987216,2.95657608,38666.0,38648.0,0.53198193]
[1610080987417,2.95657608,38666.0,38649.0,0.5]
[1610080987819,2.95657608,38666.0,38650.0,0.5]
[1610080988018,0.13632608,38651.0,38650.0,0.53198433]
[1610080988218,0.13632608,38651.0,38639.0,0.13632608]
[1610080988418,0.25474608,38651.0,38650.0,0.5]
[1610080988619,0.25474608,38651.0,38650.0,0.53039936]
[1610080988817,0.25474608,38651.0,38640.0,0.03198345]
[1610080988818,3.56924608,38651.0,38640.0,0.03198345]
[1610080989020,3.56924608,38651.0,38617.0,3.8734]
[1610080989021,3.56924608,38651.0,38650.0,0.0319853]
[1610080989218,3.56924608,38651.0,38641.0,0.03198699]
[1610080989619,3.56924608,38651.0,38618.0,0.15844236]
[1610080989620,3.56924608,38651.0,38650.0,0.03198848]
[1610080989821,3.56924608,38651.0,38642.0,0.03198972]
[1610080990023,0.13632608,38643.0,38618.0,0.15844236]
[1610080990220,0.1569,38642.0,38618.0,0.15844236]
[1610080990422,3.7453,38631.0,38618.0,0.15844236]
[1610080990623,3.87774,38631.0,38588.0,3.2118]
[1610080990820,3.493,38621.0,38619.0,0.03199584]
[1610080991019,3.60744,38621.0,38619.0,0.03199584]
[1610080991222,3.60744,38621.0,38589.0,0.19048511]
[1610080991419,3.60744,38621.0,38620.0,0.03200268]
[1610080991620,3.60744,38621.0,38590.0,0.03200374]
[1610080992020,3.60744,38621.0,38620.0,0.03200362]
[1610080992221,3.35744,38621.0,38602.0,0.13632608]
[1610080992420,3.35744,38621.0,38620.0,0.032004]
[1610080992821,3.35744,38621.0,38603.0,0.03200267]
[1610080993023,3.35744,38621.0,38620.0,0.03200236]
[1610080993221,3.35744,38621.0,38604.0,0.03170403]
[1610080993422,3.35744,38621.0,38620.0,0.03200158]
[1610080993623,0.11444,38621.0,38620.0,0.03200158]
[1610080993823,0.11444,38621.0,38602.0,0.13632608]
[1610080993824,0.11444,38621.0,38603.0,0.03199858]
[1610080994025,0.11444,38621.0,38620.0,0.13662471]
[1610080994223,0.11444,38621.0,38620.0,0.13632608]
[1610080994623,0.11444,38621.0,38620.0,0.16832288]
[1610080995429,0.11444,38621.0,38599.0,0.06339837]
[1610080995630,0.11444,38621.0,38620.0,0.03200112]
[1610080995827,0.11444,38621.0,38599.0,0.09540191]
[1610080996029,3.6312,38618.0,38602.0,0.13632608]
[1610080996227,3.72889,38618.0,38602.0,0.13632608]
[1610080996429,3.72889,38618.0,38603.0,0.0320055]
[1610080997126,3.72889,38618.0,38576.0,0.09542509]
[1610080997528,3.72889,38618.0,38604.0,0.03201087]
[1610080997727,3.72889,38618.0,38577.0,0.03201288]
[1610080997927,3.72889,38618.0,38576.0,0.06341361]
[1610080997928,3.72889,38618.0,38605.0,0.03201326]
[1610080998128,0.13632608,38606.0,38605.0,0.03201326]
[1610080998327,0.13632608,38606.0,38593.0,0.13632608]
[1610080998328,0.22104608,38606.0,38593.0,0.13632608]
[1610080998527,0.08472,38606.0,38605.0,0.03201048]
[1610080998727,0.08472,38606.0,38594.0,0.03200716]
[1610080998926,0.08472,38606.0,38605.0,0.03200725]
[1610080999327,0.08472,38606.0,38594.0,0.03200585]
[1610080999527,0.08472,38606.0,38605.0,0.03200619]
[1610080999927,0.08472,38606.0,38595.0,0.03200814]
[1610081000127,0.08472,38606.0,38605.0,0.03200806]
[1610081000327,0.08472,38606.0,38596.0,0.032009]
[1610081000528,0.08472,38606.0,38605.0,0.03200898]
[1610081000729,0.08472,38606.0,38605.0,0.16833506]
[1610081000929,0.08472,38606.0,38605.0,0.13632608]
[1610081001129,0.09769,38618.0,38605.0,0.13662607]
[1610081001330,0.13244,38631.0,38605.0,0.22837607]
[1610081001529,0.5504065,38642.0,38605.0,0.22837607]
[1610081001730,0.11741,38643.0,38606.0,0.03199751]
[1610081001930,0.55281662,38658.0,38606.0,0.03199751]
[1610081002132,0.55318378,38662.0,38642.0,0.5]
[1610081002332,0.55318378,38662.0,38626.0,0.1224]
[1610081002533,0.12051,38662.0,38630.0,3.3151]
[1610081002732,0.12051,38662.0,38659.0,0.13632608]
[1610081002930,0.12051,38662.0,38631.0,0.09534541]
[1610081003333,0.12051,38662.0,38660.0,0.00029977]
[1610081003533,0.12051,38662.0,38632.0,0.03198145]
[1610081003733,0.12051,38662.0,38661.0,0.00029977]
[1610081003933,0.12051,38662.0,38633.0,0.00029977]
[1610081004334,0.12051,38662.0,38631.0,0.5]
[1610081004535,0.12051,38662.0,38634.0,0.00029977]
[1610081004735,0.12051,38662.0,38642.0,0.13632608]
[1610081004935,0.12051,38662.0,38660.0,0.5]
[1610081005335,0.12051,38662.0,38661.0,0.00029979]
[1610081005537,0.18457012,38618.0,38614.0,6.4591]
[1610081005736,0.18457012,38618.0,38613.0,0.18346864]
[1610081005941,0.18457012,38618.0,38615.0,0.09534912]
[1610081006135,0.18457012,38618.0,38614.0,0.03198187]
[1610081006337,0.18457012,38618.0,38616.0,0.03198128]
[1610081006736,0.18457012,38618.0,38617.0,0.13632608]
[1610081006936,0.18457012,38618.0,38617.0,0.16830707]
[1610081008337,3.0093,38642.0,38617.0,0.16830707]
[1610081008737,0.10729,38643.0,38618.0,0.03198067]
[1610081008936,0.10729,38643.0,38641.0,0.13632608]
[1610081009336,0.10729,38643.0,38642.0,0.03198025]
[1610081009936,0.50412673,38662.0,38642.0,0.03198025]
[1610081010737,0.13632608,38643.0,38642.0,0.03198025]
[1610081010939,0.24527608,38643.0,38642.0,0.03198025]
[1610081011538,0.10895,38643.0,38642.0,0.03198025]
[1610081011740,0.10895,38643.0,38634.0,0.03198604]
[1610081011940,0.10895,38643.0,38642.0,0.03198413]
[1610081012139,3.8093,38651.0,38635.0,0.03198336]
[1610081012540,3.8093,38651.0,38630.0,0.10331]
[1610081012541,3.8093,38651.0,38643.0,0.5]
[1610081012739,0.50412673,38662.0,38643.0,0.5]
[1610081012940,0.13632608,38650.0,38648.0,0.13632608]
[1610081013540,0.13632608,38650.0,38649.0,0.03198024]
[1610081014842,3.1017,38647.0,38637.0,0.0319798]
[1610081015042,3.1017,38647.0,38631.0,0.5]
[1610081015444,3.1017,38647.0,38638.0,0.03198293]
[1610081015642,3.1017,38647.0,38632.0,0.03198588]
[1610081015843,0.13632608,38650.0,38639.0,0.03198583]
[1610081016044,0.13632608,38650.0,38633.0,0.03198736]
[1610081016247,0.60278704,38650.0,38633.0,0.03198736]
[1610081016443,0.13632608,38650.0,38644.0,0.5]
[1610081016843,0.13632608,38650.0,38649.0,0.13632608]
[1610081017444,0.13632608,38650.0,38649.0,0.16830802]
[1610081020049,0.13632608,38650.0,38649.0,0.13632608]
[1610081020249,0.0999,38652.0,38649.0,0.16800254]
[1610081020448,2.19494605,38703.0,38649.0,0.16800254]
[1610081020449,0.47036013,38660.0,38649.0,0.16830226]
[1610081020651,0.47036013,38660.0,38650.0,0.03197131]
[1610081020851,0.38361673,38662.0,38659.0,0.13632608]
[1610081021450,0.38361673,38662.0,38660.0,0.03196162]
[1610081021648,0.47020318,38689.0,38660.0,0.03196162]
[1610081021849,0.46958763,38698.0,38660.0,0.03196162]
[1610081022248,0.56347386,38700.0,38660.0,0.03196162]
[1610081022448,0.46956259,38703.0,38660.0,0.03196162]
[1610081022647,0.46956259,38703.0,38671.0,3.8252]
[1610081022849,5.47608095,38739.0,38671.0,3.8252]
[1610081022850,0.46885809,38709.0,38702.0,0.13632608]
[1610081023250,0.46883781,38712.0,38703.0,0.00029946]
[1610081023449,0.46811223,38714.0,38703.0,0.00029946]
[1610081023850,0.46806249,38719.0,38703.0,0.00029946]
[1610081024250,0.5979,38718.0,38703.0,0.00029946]
[1610081024450,0.09717,38718.0,38703.0,0.00029946]
[1610081024650,4.3291,38711.0,38703.0,0.00029946]
[1610081024849,4.3291,38711.0,38707.0,0.13632608]
[1610081025050,0.09717,38718.0,38707.0,0.13632608]
[1610081025249,0.09717,38718.0,38708.0,0.00029941]
[1610081026451,0.09717,38718.0,38708.0,0.03193903]
[1610081026852,0.09717,38718.0,38717.0,0.13632608]
[1610081027453,0.09717,38718.0,38717.0,0.13662542]
[1610081029658,0.46378063,38744.0,38717.0,0.13662542]
[1610081030058,0.46378063,38744.0,38718.0,0.0002993]
[1610081030258,0.55650584,38746.0,38718.0,0.0002993]
[1610081030259,0.46379366,38745.0,38718.0,0.0002993]
[1610081030659,0.13632608,38747.0,38718.0,0.0002993]
[1610081030858,0.13632608,38747.0,38746.0,0.13632608]
[1610081031061,0.13632608,38747.0,38718.0,0.0002993]
[1610081031260,4.2284,38746.0,38718.0,0.0002993]
[1610081031561,4.2284,38746.0,38715.0,0.00029929]
[1610081031962,4.2284,38746.0,38704.0,0.00029929]
[1610081032161,0.26692608,38747.0,38704.0,0.00029929]
[1610081032363,0.26692608,38747.0,38714.0,3.6541]
[1610081032962,0.26692608,38747.0,38746.0,0.13632608]
[1610081033563,0.26692608,38747.0,38746.0,0.13662534]
[1610081033764,0.26692608,38747.0,38746.0,0.00029926]
[1610081034163,0.26692608,38747.0,38710.0,0.00029926]
[1610081034564,0.26692608,38747.0,38705.0,0.00029926]
[1610081034965,0.1306,38747.0,38723.0,0.13632608]
[1610081035165,0.1306,38747.0,38746.0,0.5]
[1610081035567,0.1306,38747.0,38723.0,0.13632608]
[1610081036167,0.1306,38747.0,38724.0,0.00029928]
[1610081036366,0.01936721,38755.0,38724.0,0.00029929]
[1610081036968,0.13632608,38749.0,38748.0,0.13632608]
[1610081037167,0.26450608,38749.0,38748.0,0.13632608]
[1610081037367,0.26450608,38749.0,38746.0,0.5]
[1610081037768,0.26450608,38749.0,38725.0,0.5]
[1610081038169,0.26450608,38749.0,38726.0,0.0002993]
[1610081038870,0.58756639,38749.0,38727.0,0.13632608]
[1610081039269,0.58756639,38749.0,38728.0,0.0002993]
[1610081039473,0.12818,38749.0,38728.0,0.0002993]
[1610081039869,0.12818,38749.0,38725.0,0.0002993]
[1610081040070,0.58729647,38749.0,38725.0,0.0002993]
[1610081040670,0.12818,38749.0,38725.0,0.0002993]
[1610081040871,0.12818,38749.0,38738.0,0.13632608]
[1610081042273,0.47796922,38755.0,38738.0,0.13632608]
[1610081042473,0.47796922,38755.0,38724.0,0.5]
[1610081042674,0.45836776,38754.0,38724.0,0.5]
[1610081042875,0.56280689,38755.0,38740.0,0.13632608]
[1610081043274,0.56280689,38755.0,38725.0,0.00029929]
[1610081043476,0.10443721,38755.0,38741.0,0.00029929]
[1610081043675,0.10443721,38755.0,38748.0,0.5]
[1610081044579,0.10443721,38755.0,38747.0,0.5]
[1610081044776,0.10443721,38755.0,38726.0,0.5]
[1610081044977,0.10443721,38755.0,38740.0,0.13632608]
[1610081045175,0.10443721,38755.0,38741.0,0.5]
[1610081045377,0.10443721,38755.0,38742.0,0.5]
[1610081045576,0.10443721,38755.0,38742.0,0.50029927]
[1610081045777,0.10443721,38755.0,38749.0,0.5]
[1610081046379,3.2998,38750.0,38722.0,0.5]
[1610081046779,3.2998,38750.0,38741.0,0.5]
[1610081046980,0.13632608,38742.0,38725.0,0.13632608]
[1610081047379,0.13632608,38742.0,38726.0,0.0002993]
[1610081047580,0.13632608,38742.0,38741.0,0.5]
[1610081047880,0.13632608,38742.0,38741.0,0.5002993]
[1610081049882,0.13632608,38742.0,38741.0,0.0002993]
[1610081050282,0.13632608,38742.0,38741.0,0.5]
[1610081050884,0.13632608,38742.0,38741.0,0.50029927]
[1610081051085,0.13632608,38742.0,38741.0,0.5319302]
[1610081052089,0.13632608,38742.0,38741.0,0.03163093]
[1610081052488,0.13632608,38742.0,38741.0,0.03193021]
[1610081052693,0.13632608,38742.0,38710.0,0.09519141]
[1610081052890,0.11401,38742.0,38741.0,0.03193028]
[1610081053093,0.11401,38742.0,38725.0,0.13632608]
[1610081053490,0.11401,38742.0,38726.0,0.0319299]
[1610081054894,0.24752292,38742.0,38741.0,0.13632608]
[1610081055291,0.24752292,38742.0,38741.0,0.16824676]
[1610081056891,0.10443721,38755.0,38741.0,0.16824676]
[1610081057493,0.10443721,38755.0,38742.0,0.03190737]
[1610081057892,0.10443721,38755.0,38743.0,0.5]
[1610081058392,0.10443721,38755.0,38744.0,0.03190699]
[1610081058994,0.10443721,38755.0,38754.0,0.13632608]
[1610081059594,0.10443721,38755.0,38754.0,0.1682326]
[1610081059997,0.10443721,38755.0,38754.0,0.03190652]
[1610081060694,0.10443721,38755.0,38754.0,0.5]
[1610081060895,0.10443721,38755.0,38754.0,0.53191425]
[1610081061095,0.24076329,38755.0,38754.0,0.04391425]
[1610081061296,0.24076329,38755.0,38754.0,0.04233435]
[1610081061495,0.66926329,38755.0,38754.0,0.04233435]
[1610081064397,0.24076329,38755.0,38754.0,0.04233435]
[1610081065797,0.10443721,38755.0,38754.0,0.04233435]
[1610081067097,0.24076329,38755.0,38754.0,0.04233435]
[1610081071607,0.24076329,38755.0,38754.0,0.04075448]
[1610081074813,1.6400855,38755.0,38754.0,0.00914543]
[1610081075614,1.6400855,38755.0,38754.0,0.04076244]
[1610081075815,1.6400855,38755.0,38754.0,0.00884023]
[1610081076014,1.6400855,38755.0,38754.0,0.0091455]
[1610081076614,1.6400855,38755.0,38754.0,0.04076263]
[1610081076815,1.6400855,38755.0,38754.0,0.00884023]
[1610081077214,1.6400855,38755.0,38754.0,0.04076197]
[1610081077514,1.6400855,38755.0,38754.0,0.00884023]
[1610081077713,2.32355605,38755.0,38754.0,0.04076238]
[1610081077915,2.32355605,38755.0,38754.0,0.00884023]
[1610081078113,2.32355605,38755.0,38754.0,0.04076196]
[1610081078915,2.40065605,38755.0,38721.0,0.16631846]
[1610081079115,3.2851,38744.0,38722.0,0.13632608]
[1610081079316,0.46706086,38741.0,38721.0,0.06322846]
[1610081079515,0.46706086,38741.0,38723.0,0.03192288]
[1610081079718,0.46808793,38736.0,38722.0,0.03192375]
[1610081079917,0.58052793,38736.0,38722.0,0.03192375]
[1610081080117,0.46815348,38729.0,38724.0,0.03192724]
[1610081080316,3.9347,38725.0,38723.0,0.0319278]
[1610081080519,3.9347,38725.0,38697.0,0.0999]
[1610081080520,5.06335177,38725.0,38697.0,0.0999]
[1610081080918,4.81309129,38725.0,38724.0,0.03193884]
[1610081081117,4.94941737,38725.0,38698.0,0.03194015]
[1610081081318,7.6195115,38725.0,38697.0,0.0999]
[1610081081717,8.57375962,38725.0,38697.0,0.0999]
[1610081081917,8.49645962,38725.0,38698.0,0.03194504]
[1610081082118,0.46988493,38708.0,38698.0,0.03194504]
[1610081083023,0.46995833,38710.0,38699.0,0.13632608]
[1610081083423,0.46995833,38710.0,38700.0,0.03194339]
[1610081084323,0.46995833,38710.0,38690.0,0.03194483]
[1610081084524,0.46995992,38708.0,38701.0,0.0319452]
[1610081084723,0.46995992,38708.0,38692.0,3.649]
[1610081084925,0.09453,38712.0,38692.0,3.649]
[1610081085125,0.46989685,38715.0,38711.0,0.13632608]
[1610081085325,0.13632608,38719.0,38711.0,0.13632608]
[1610081085925,0.13632608,38719.0,38712.0,0.03193758]
[1610081086528,0.60628553,38719.0,38712.0,0.03193758]
[1610081086928,0.13632608,38719.0,38712.0,0.03193758]
[1610081087127,0.13632608,38719.0,38718.0,0.13632608]
[1610081087728,0.13632608,38719.0,38718.0,0.1682637]
[1610081088429,0.60626247,38719.0,38718.0,0.03193762]
[1610081088829,1.85950644,38719.0,38718.0,0.03193762]
[1610081089029,1.85950644,38719.0,38714.0,0.03194324]
[1610081089229,0.13632608,38715.0,38713.0,0.5]
[1610081089428,0.23215608,38715.0,38698.0,0.13632608]
[1610081089628,1.41317188,38714.0,38698.0,0.13632608]
[1610081089828,1.41317188,38714.0,38699.0,0.03194452]
[1610081090229,0.46986588,38713.0,38699.0,0.03194452]
[1610081090632,0.56382029,38714.0,38699.0,0.03194452]
[1610081090633,0.46976978,38714.0,38699.0,0.53194452]
[1610081090830,0.46976978,38714.0,38700.0,0.5]
[1610081091030,0.70185917,38715.0,38700.0,0.53194222]
[1610081091231,0.56553309,38715.0,38705.0,0.13632608]
[1610081091433,0.46943444,38714.0,38705.0,0.13632608]
[1610081091631,0.46943444,38714.0,38706.0,0.03194396]
[1610081091832,0.46904193,38711.0,38706.0,0.03194396]
[1610081092234,0.46908407,38712.0,38701.0,0.53194426]
[1610081092433,0.46908407,38712.0,38707.0,0.0319438]
[1610081092635,0.46954599,38713.0,38706.0,0.5]
[1610081092834,0.46954599,38713.0,38702.0,0.03194208]
[1610081092835,0.46954599,38713.0,38702.0,0.53194208]
[1610081093034,0.46954599,38713.0,38708.0,0.03194082]
[1610081093237,0.46953299,38718.0,38710.0,0.13632608]
[1610081093635,0.46946208,38721.0,38711.0,0.03193485]
[1610081094036,0.46940001,38728.0,38711.0,0.03193485]
[1610081094235,0.46940001,38728.0,38712.0,0.00030535]
[1610081094436,0.46936177,38732.0,38711.0,0.5]
[1610081094636,0.46936177,38732.0,38712.0,0.5]
[1610081094836,0.46932768,38735.0,38712.0,0.53162145]
[1610081095036,0.46932768,38735.0,38713.0,0.03192575]
[1610081095235,0.13632608,38734.0,38733.0,0.13632608]
[1610081095836,0.13632608,38734.0,38733.0,0.16825188]
[1610081096037,0.13632608,38734.0,38733.0,0.0319258]
[1610081096639,0.60567031,38734.0,38713.0,0.03192839]
[1610081096839,1.54824445,38734.0,38733.0,0.03192938]
[1610081097242,2.23662063,38734.0,38721.0,0.08672]
[1610081097439,2.23662063,38734.0,38733.0,0.03193166]
[1610081097641,2.23662063,38734.0,38721.0,0.08672]
[1610081097642,0.13632608,38734.0,38722.0,0.03193228]
[1610081098040,0.13632608,38734.0,38733.0,0.03193267]
[1610081098240,2.23659269,38734.0,38723.0,0.0319312]
[1610081098441,2.23659269,38734.0,38733.0,0.0319301]
[1610081098642,0.69954853,38734.0,38724.0,0.0319308]